bitfinex/quotes_BTCUSD_20251226
["timestamp","ask_amount","ask_price","bid_price","bid_amount"]
[1766722130896,0.01136,88635.0,88625.0,0.42117465]
[1766722131578,0.01128235,88634.0,88625.0,0.42117465]
[1766722131809,0.0112826,88632.0,88625.0,0.42117465]
[1766722132264,0.01128235,88634.0,88625.0,0.42117465]
[1766722132486,0.01128247,88633.0,88625.0,0.42117465]
[1766722132711,0.0112826,88632.0,88625.0,0.42117465]
[1766722133379,0.01128247,88633.0,88625.0,0.42117465]
[1766722133626,0.01128286,88630.0,88625.0,0.42062565]
[1766722133888,0.01128247,88633.0,88620.0,0.44464413]
[1766722133889,0.01128273,88631.0,88620.0,0.44464413]
[1766722134114,0.01128286,88630.0,88620.0,0.43336]
[1766722134750,0.08067763,88633.0,88620.0,0.44464413]
[1766722135007,0.0112826,88632.0,88621.0,0.433284]
[1766722135464,0.0112826,88632.0,88622.0,0.01128387]
[1766722135692,0.01128247,88633.0,88622.0,0.01128387]
[1766722135882,0.0112826,88632.0,88621.0,0.433284]
[1766722136751,0.01128273,88631.0,88621.0,0.422]
[1766722137615,0.0112826,88632.0,88621.0,0.433284]
[1766722138350,0.01128235,88634.0,88623.0,0.01128375]
[1766722138539,0.01128247,88633.0,88622.0,0.43328387]
[1766722138756,0.0112826,88632.0,88622.0,0.422]
[1766722139192,0.01128286,88630.0,88622.0,0.422]
[1766722139617,0.01128298,88629.0,88622.0,0.422]
[1766722139833,0.01128337,88626.0,88622.0,0.422]
[1766722140000,0.74214668,88650.0,88606.0,0.00035948]
[1766722140001,0.011284,88621.0,88607.0,0.422]
[1766722140184,0.02483431,88625.0,88608.0,0.01136]
[1766722140185,0.01128438,88618.0,88608.0,0.01136]
[1766722140390,0.41502044,88620.0,88607.0,0.422]
[1766722140724,0.41502044,88620.0,88608.0,0.01128566]
[1766722140922,0.01128362,88624.0,88612.0,0.01128515]
[1766722141328,0.01128298,88629.0,88624.0,0.000549]
[1766722141493,0.01128324,88627.0,88624.0,0.000549]
[1766722141687,0.01128337,88626.0,88620.0,0.422]
[1766722142011,0.01128349,88625.0,88620.0,0.422]
[1766722142206,0.01128324,88627.0,88620.0,0.422]
[1766722142384,0.01128337,88626.0,88620.0,0.422]
[1766722142593,0.01128349,88625.0,88620.0,0.422]
[1766722143013,0.42637917,88630.0,88620.0,0.422]
[1766722143189,0.01128298,88629.0,88620.0,0.422]
[1766722143390,0.07905758,88630.0,88620.0,0.422]
[1766722143795,0.01128311,88628.0,88620.0,0.422]
[1766722144739,0.01128337,88626.0,88620.0,0.422]
[1766722145567,0.01128298,88629.0,88620.0,0.422]
[1766722146359,0.01136,88630.0,88629.0,0.000549]
[1766722146558,0.01128235,88634.0,88629.0,0.000549]
[1766722146559,0.01136,88634.0,88629.0,0.000549]
[1766722146909,0.01136,88634.0,88624.0,0.43328362]
[1766722147622,0.02264235,88634.0,88624.0,0.422]
[1766722148861,0.01136,88634.0,88624.0,0.43328362]
[1766722149271,0.01128235,88634.0,88624.0,0.422]
[1766722149620,0.01128247,88633.0,88624.0,0.422]
[1766722150390,0.01128235,88634.0,88624.0,0.422]
[1766722150802,0.01136,88639.0,88626.0,0.01128337]
[1766722150961,0.01128095,88645.0,88632.0,0.422]
[1766722151162,0.01128095,88645.0,88634.0,0.01128235]
[1766722151163,0.01128107,88644.0,88634.0,0.01128235]
[1766722151364,0.01128095,88645.0,88635.0,0.422]
[1766722151764,0.01128107,88644.0,88635.0,0.422]
[1766722152373,0.01128095,88645.0,88635.0,0.422]
[1766722152709,0.0112812,88643.0,88635.0,0.422]
[1766722152898,0.01128095,88645.0,88631.0,0.07905639]
[1766722152899,0.00055,88635.0,88631.0,0.01136]
[1766722153092,0.01128222,88635.0,88632.0,0.01136]
[1766722153299,0.05641176,88634.0,88632.0,0.01136]
[1766722153814,0.01128197,88637.0,88632.0,0.01081]
[1766722154032,0.01128184,88638.0,88632.0,0.39673]
[1766722154235,0.01128209,88636.0,88632.0,0.38592]
[1766722154693,0.01128184,88638.0,88632.0,0.38592]
[1766722154879,0.01128197,88637.0,88632.0,0.38592]
[1766722155068,0.01128184,88638.0,88632.0,0.38592]
[1766722156235,0.05640781,88641.0,88632.0,0.38592]
[1766722156236,0.01128158,88640.0,88632.0,0.38592]
[1766722156435,0.0564111,88636.0,88627.0,0.01136]
[1766722156604,0.14384015,88640.0,88627.0,0.40867104]
[1766722156788,0.01128171,88639.0,88627.0,0.3973878]
[1766722156987,0.01128184,88638.0,88627.0,0.3973878]
[1766722157189,0.01128184,88638.0,88627.0,0.40867104]
[1766722157389,0.01128158,88640.0,88628.0,0.39720311]
[1766722157616,0.01128146,88641.0,88629.0,0.01128298]
[1766722157820,0.22557446,88663.0,88642.0,0.38592]
[1766722158018,0.01127967,88655.0,88642.0,0.38592]
[1766722158246,0.41501535,88660.0,88645.0,0.01128095]
[1766722158436,8.1e-07,88652.0,88649.0,0.01128044]
[1766722158741,0.01355082,88662.0,88652.0,0.01128006]
[1766722158932,0.01127751,88672.0,88662.0,0.000252]
[1766722159181,0.01127764,88671.0,88662.0,0.000252]
[1766722159323,0.0563933,88663.0,88650.0,0.01136]
[1766722159529,0.01127904,88660.0,88650.0,0.01136]
[1766722159709,0.06767442,88660.0,88651.0,0.38592]
[1766722159916,0.01127917,88659.0,88651.0,0.38592]
[1766722160318,0.01127929,88658.0,88651.0,0.38592]
[1766722160771,0.01127942,88657.0,88651.0,0.38592]
[1766722160968,0.01127929,88658.0,88651.0,0.38592]
[1766722161277,0.01127917,88659.0,88651.0,0.38592]
[1766722161816,0.01127891,88661.0,88651.0,0.38592]
[1766722162078,0.01127904,88660.0,88651.0,0.38592]
[1766722162254,0.01127942,88657.0,88651.0,0.38592]
[1766722162415,0.01127929,88658.0,88651.0,0.38592]
[1766722163186,0.01127917,88659.0,88651.0,0.38592]
[1766722163559,0.000547,88651.0,88647.0,0.01136]
[1766722164181,0.01127993,88653.0,88647.0,0.01136]
[1766722164381,0.0112798,88654.0,88647.0,0.01136]
[1766722164610,0.01127967,88655.0,88647.0,0.01136]
[1766722165412,0.01127955,88656.0,88647.0,0.01136]
[1766722166740,0.01127955,88656.0,88648.0,0.01136]
[1766722167334,0.01127967,88655.0,88648.0,0.39728]
[1766722167528,0.01127955,88656.0,88648.0,0.39728]
[1766722167971,0.01127967,88655.0,88648.0,0.39728]
[1766722168294,0.0112798,88654.0,88648.0,0.396733]
[1766722168505,0.06768088,88652.0,88648.0,0.396733]
[1766722168708,0.01128107,88644.0,88632.0,0.38592]
[1766722168911,0.01128069,88647.0,88633.0,0.40856247]
[1766722169079,0.01128082,88646.0,88634.0,0.38592]
[1766722169280,0.01128082,88646.0,88633.0,0.09260527]
[1766722169281,0.01128069,88647.0,88635.0,0.39720222]
[1766722169483,0.41480839,88650.0,88636.0,0.01128209]
[1766722169714,0.01128044,88649.0,88636.0,0.01128209]
[1766722169992,0.01128044,88649.0,88637.0,0.01128197]
[1766722170195,0.01128057,88648.0,88637.0,0.01128197]
[1766722170609,0.34074133,88651.0,88637.0,0.01128197]
[1766722170610,0.02263993,88653.0,88639.0,0.38592]
[1766722170812,0.45992977,88650.0,88639.0,0.38592]
[1766722171010,0.40352808,88650.0,88639.0,0.38592]
[1766722171639,0.40352808,88650.0,88639.0,0.39720171]
[1766722171860,0.40352808,88650.0,88640.0,0.01128158]
[1766722172017,0.40352808,88650.0,88641.0,0.38592]
[1766722172426,0.40352808,88651.0,88641.0,0.39720146]
[1766722172642,0.40352808,88651.0,88642.0,0.38592]
[1766722172838,0.41480826,88651.0,88642.0,0.38592]
[1766722173011,0.40352808,88651.0,88642.0,0.38592]
[1766722173212,0.41480826,88651.0,88642.0,0.38592]
[1766722173412,0.01128031,88650.0,88642.0,0.38592]
[1766722173812,0.41480826,88651.0,88642.0,0.38592]
[1766722174040,0.40352808,88651.0,88642.0,0.38592]
[1766722174391,0.01128044,88649.0,88636.0,0.38592]
[1766722174710,0.0676831,88649.0,88638.0,0.38592]
[1766722174872,0.01128057,88648.0,88638.0,0.38592]
[1766722175076,0.45992931,88651.0,88638.0,0.38592]
[1766722175239,0.01128044,88649.0,88639.0,0.38592]
[1766722175442,0.01128031,88650.0,88639.0,0.38592]
[1766722175639,0.41480839,88650.0,88640.0,0.38592]
[1766722175841,0.06768082,88652.0,88640.0,0.01128158]
[1766722176048,0.02263993,88653.0,88641.0,0.38592]
[1766722176231,6e-08,88652.0,88643.0,0.38592]
[1766722177071,6e-08,88652.0,88643.0,0.3972012]
[1766722177649,6e-08,88652.0,88643.0,0.38592]
[1766722178320,0.01128018,88651.0,88643.0,0.38592]
[1766722178874,9.8e-07,88652.0,88643.0,0.38592]
[1766722179079,1.04e-06,88652.0,88643.0,0.38592]
[1766722179912,0.0112811,88652.0,88643.0,0.38592]
[1766722180550,0.01128018,88651.0,88643.0,0.38592]
[1766722180882,1.04e-06,88652.0,88643.0,0.38592]
[1766722183210,0.01127904,88660.0,88647.0,0.38592]
[1766722183594,0.01127993,88653.0,88646.0,0.39947082]
[1766722183789,0.0112798,88654.0,88646.0,0.39947082]
[1766722183918,0.01127955,88656.0,88646.0,0.39947082]
[1766722184964,0.01127967,88655.0,88646.0,0.39947082]
[1766722185407,0.0112798,88654.0,88646.0,0.39947082]
[1766722185764,0.01127967,88655.0,88636.0,0.47674]
[1766722185765,0.000549,88646.0,88636.0,0.47674]
[1766722185940,0.000549,88646.0,88637.0,0.02260197]
[1766722186130,1.59e-06,88640.0,88637.0,0.49934197]
[1766722186670,1.59e-06,88640.0,88637.0,0.55575134]
[1766722186814,1.59e-06,88640.0,88637.0,0.49934197]
[1766722188058,1.59e-06,88640.0,88638.0,0.01132]
[1766722188463,1.59e-06,88640.0,88639.0,0.01132]
[1766722188667,1.59e-06,88640.0,88639.0,0.010771]
[1766722188830,1.59e-06,88640.0,88639.0,0.01132]
[1766722192048,1.59e-06,88640.0,88639.0,0.48806]
[1766722192928,0.01128069,88647.0,88639.0,0.48806]
[1766722193243,0.01128095,88645.0,88639.0,0.48806]
[1766722193647,0.01128082,88646.0,88639.0,0.48806]
[1766722195773,0.01128069,88647.0,88639.0,0.48806]
[1766722195957,0.06768398,88648.0,88639.0,0.48806]
[1766722196984,0.01128069,88647.0,88639.0,0.48806]
[1766722197179,0.01128082,88646.0,88639.0,0.48806]
[1766722197578,0.01128069,88647.0,88639.0,0.48806]
[1766722197786,0.06768398,88648.0,88639.0,0.48806]
[1766722198187,0.01128057,88648.0,88639.0,0.48806]
[1766722198460,0.01128044,88649.0,88639.0,0.48806]
[1766722198806,0.01128057,88648.0,88639.0,0.48806]
[1766722199116,0.0002,88650.0,88641.0,0.01128146]
[1766722199318,0.0002,88650.0,88648.0,0.000549]
[1766722199528,0.0002,88650.0,88646.0,0.01128082]
[1766722199706,0.50915917,88659.0,88646.0,0.01128082]
[1766722199905,0.01127878,88662.0,88650.0,0.47674]
[1766722200105,0.01127904,88660.0,88651.0,0.47674]
[1766722200314,0.01127878,88662.0,88651.0,0.47674]
[1766722200537,0.01127866,88663.0,88651.0,0.48802018]
[1766722200721,0.49788,88668.0,88651.0,0.48802018]
[1766722200910,0.49788,88668.0,88650.0,0.40352808]
[1766722200911,0.00010776,88668.0,88663.0,0.000349]
[1766722201104,0.00010776,88668.0,88659.0,0.47674]
[1766722201516,0.00036821,88664.0,88659.0,0.47674]
[1766722201742,0.00010776,88668.0,88664.0,0.000368]
[1766722202321,0.00010776,88668.0,88661.0,0.01127891]
[1766722203179,7.6e-07,88668.0,88664.0,0.01127853]
[1766722203478,7.6e-07,88668.0,88661.0,0.01127891]
[1766722203914,7.6e-07,88668.0,88662.0,0.01127878]
[1766722204158,7.6e-07,88668.0,88665.0,0.4880184]
[1766722204379,7.6e-07,88668.0,88666.0,0.47674]
[1766722205643,7.6e-07,88668.0,88666.0,0.48806]
[1766722206658,7.6e-07,88668.0,88667.0,0.05639076]
[1766722206867,7.6e-07,88668.0,88667.0,0.53313076]
[1766722207290,0.01132,88680.0,88666.0,0.01132]
[1766722207291,0.0006,88683.0,88672.0,0.46843669]
[1766722207496,0.01187611,88683.0,88673.0,0.01132]
[1766722208061,0.0006,88683.0,88674.0,0.47674]
[1766722208269,0.01127624,88682.0,88674.0,0.47674]
[1766722208468,0.01127649,88680.0,88674.0,0.476433]
[1766722208734,0.01127637,88681.0,88674.0,0.476433]
[1766722208864,0.01187611,88683.0,88674.0,0.476433]
[1766722209274,0.0006,88683.0,88674.0,0.476433]
[1766722209608,0.0004,88687.0,88683.0,0.000549]
[1766722210345,0.0004,88687.0,88680.0,0.48806]
[1766722211700,0.0004,88687.0,88680.0,0.49933649]
[1766722211948,0.01127471,88694.0,88682.0,0.47674]
[1766722212137,0.01127497,88692.0,88682.0,0.47674]
[1766722212319,0.0112751,88691.0,88682.0,0.47674]
[1766722212517,0.0009511,88683.0,88682.0,0.47674]
[1766722212750,0.0004021,88683.0,88682.0,0.47674]
[1766722214098,0.0002,88696.0,88682.0,0.47674]
[1766722214309,0.01127484,88693.0,88682.0,0.47684774]
[1766722214520,0.01127471,88694.0,88682.0,0.48812398]
[1766722214730,0.01127484,88693.0,88682.0,0.48812398]
[1766722214957,0.01127497,88692.0,88682.0,0.47684774]
[1766722215142,0.06765306,88688.0,88682.0,0.47629874]
[1766722215356,0.0112756,88687.0,88682.0,0.47629874]
[1766722215561,0.01127586,88685.0,88682.0,0.00010774]
[1766722215802,0.01127675,88678.0,88671.0,0.01132]
[1766722216623,0.50018,88679.0,88671.0,0.01132]
[1766722216970,0.01127649,88680.0,88671.0,0.01132]
[1766722216971,0.5114556,88687.0,88672.0,0.54588751]
[1766722217278,0.56783401,88687.0,88677.0,0.40352808]
[1766722217640,0.01127573,88686.0,88677.0,0.40352808]
[1766722218213,0.01127535,88689.0,88678.0,0.53461]
[1766722218413,0.01127522,88690.0,88678.0,0.54588675]
[1766722218588,0.06769588,88691.0,88681.0,0.53461]
[1766722218817,0.01127522,88690.0,88681.0,0.53461]
[1766722219019,0.01127535,88689.0,88681.0,0.53461]
[1766722219337,0.01127522,88690.0,88681.0,0.53461]
[1766722220386,0.07897115,88691.0,88681.0,0.53461]
[1766722220387,0.0225951,88691.0,88681.0,0.53461]
[1766722220564,0.0225951,88691.0,88681.0,0.54593]
[1766722220776,0.01132,88691.0,88681.0,0.53459917]
[1766722220995,0.01132,88691.0,88681.0,0.01132]
[1766722220996,0.01127599,88684.0,88681.0,0.01132]
[1766722221199,0.06765559,88685.0,88681.0,0.01132]
[1766722221404,0.01127599,88684.0,88681.0,0.01132]
[1766722221614,0.06765559,88685.0,88681.0,0.01132]
[1766722221969,0.01127599,88684.0,88681.0,0.01132]
[1766722224122,0.06765639,88684.0,88681.0,0.01132]
[1766722224790,0.01127688,88677.0,88674.0,0.53461]
[1766722224907,0.01127688,88677.0,88666.0,0.01127828]
[1766722224908,0.01127649,88680.0,88673.0,0.01132]
[1766722225113,0.01127662,88679.0,88673.0,0.01132]
[1766722225310,0.01127649,88680.0,88673.0,0.01132]
[1766722225511,0.58138963,88681.0,88673.0,0.01132]
[1766722225905,0.01127649,88680.0,88673.0,0.01132]
[1766722226305,0.01127649,88680.0,88673.0,0.0111266]
[1766722226510,0.06765703,88683.0,88673.0,0.0111266]
[1766722226706,0.01127624,88682.0,88673.0,0.0111266]
[1766722226955,0.01127649,88680.0,88673.0,0.0111266]
[1766722227289,0.02482719,88681.0,88673.0,0.0111266]
[1766722227475,0.01127649,88680.0,88673.0,0.0111266]
[1766722227694,0.01355082,88681.0,88673.0,0.0111266]
[1766722227902,0.02482719,88681.0,88673.0,0.0111266]
[1766722228204,0.01355082,88681.0,88673.0,0.0111266]
[1766722228834,0.01127586,88685.0,88681.0,0.000549]
[1766722229048,0.01127586,88685.0,88673.0,0.55701398]
[1766722229430,0.56783196,88690.0,88676.0,0.011277]
[1766722229628,0.01127573,88686.0,88673.0,0.02240398]
[1766722229793,0.01127586,88685.0,88673.0,0.55701398]
[1766722230172,0.01127599,88684.0,88675.0,0.53461]
[1766722230365,0.01127586,88685.0,88675.0,0.53461]
[1766722230671,0.01127573,88686.0,88675.0,0.53461]
[1766722230829,0.06765408,88687.0,88675.0,0.53461]
[1766722231031,0.01127548,88688.0,88677.0,0.53461]
[1766722231227,0.50018,88690.0,88677.0,0.53461]
[1766722231445,0.00024521,88691.0,88690.0,0.000549]
[1766722231628,0.00024521,88691.0,88684.0,0.01127599]
[1766722232475,0.01152,88696.0,88685.0,0.01127586]
[1766722232640,0.01162768,88696.0,88686.0,0.01127573]
[1766722232827,0.01162768,88696.0,88685.0,0.01127586]
[1766722233262,0.01162768,88696.0,88686.0,0.01127573]
[1766722233891,0.51145433,88697.0,88686.0,0.01127573]
[1766722233892,0.50018,88697.0,88686.0,0.01127573]
[1766722234090,0.01127459,88695.0,88686.0,0.00010768]
[1766722234450,0.01127446,88696.0,88686.0,0.00010768]
[1766722235662,0.51145433,88697.0,88685.0,0.01127586]
[1766722235884,0.51156201,88697.0,88685.0,0.01127586]
[1766722236321,0.50028768,88697.0,88685.0,0.06765484]
[1766722236602,0.50028768,88697.0,88686.0,0.01127573]
[1766722237645,0.50028768,88697.0,88686.0,0.06765405]
[1766722237846,0.50028768,88697.0,88688.0,0.01127548]
[1766722238088,0.50028768,88697.0,88686.0,0.01127573]
[1766722238798,0.00010768,88697.0,88687.0,0.5458856]
[1766722239126,0.00010768,88697.0,88688.0,0.54588548]
[1766722239528,0.00010768,88697.0,88693.0,0.01127484]
[1766722239643,6.8e-07,88697.0,88693.0,0.54588484]
[1766722239850,6.8e-07,88697.0,88694.0,0.01127471]
[1766722240166,0.0004,88707.0,88694.0,0.01127471]
[1766722240167,0.0004,88707.0,88695.0,0.05749848]
[1766722240363,0.0004,88710.0,88702.0,0.0112737]
[1766722240786,0.0004,88710.0,88701.0,0.01127383]
[1766722241238,3e-06,88710.0,88707.0,0.01127306]
[1766722241436,0.0004,88716.0,88707.0,0.01127306]
[1766722241640,0.0004,88716.0,88709.0,0.01127281]
[1766722241845,0.01395082,88716.0,88705.0,0.53461]
[1766722242046,0.000549,88709.0,88705.0,0.53461]
[1766722242245,0.000549,88709.0,88703.0,0.01127357]
[1766722242480,0.01127217,88714.0,88702.0,0.0112737]
[1766722242616,0.01127217,88714.0,88703.0,0.01127357]
[1766722242817,0.01127205,88715.0,88703.0,0.01127357]
[1766722243258,0.06802716,88722.0,88715.0,0.00055]
[1766722243435,0.0248221,88721.0,88710.0,0.01132]
[1766722243736,0.06763239,88715.0,88710.0,0.01132]
[1766722243974,0.0112723,88713.0,88708.0,0.01132]
[1766722244133,0.01127255,88711.0,88702.0,0.5305]
[1766722244327,0.01127319,88706.0,88703.0,0.01132]
[1766722244551,0.01127281,88709.0,88703.0,0.01132]
[1766722244757,0.01127306,88707.0,88701.0,0.01132]
[1766722244994,0.54182,88717.0,88701.0,0.01132]
[1766722244995,0.54182,88714.0,88701.0,0.01132]
[1766722245181,0.54182,88714.0,88702.0,0.0112737]
[1766722245344,0.54182,88709.0,88700.0,0.01127395]
[1766722245550,0.54182,88709.0,88696.0,0.02259446]
[1766722245755,0.54182,88709.0,88698.0,0.01127421]
[1766722246161,0.54182,88709.0,88706.0,0.01127319]
[1766722246367,0.54182,88709.0,88703.0,0.06764107]
[1766722246586,0.01132,88713.0,88708.0,0.01127294]
[1766722246791,0.00658619,88713.0,88709.0,0.01127281]
[1766722247549,0.00658619,88713.0,88707.0,0.01127306]
[1766722247784,0.00658619,88713.0,88706.0,0.01127319]
[1766722248202,0.00658619,88713.0,88704.0,0.01127344]
[1766722248453,0.00658619,88713.0,88705.0,0.01127332]
[1766722248628,0.00658619,88713.0,88704.0,0.01127344]
[1766722248805,0.00658619,88713.0,88706.0,0.01127319]
[1766722249012,0.00658619,88713.0,88707.0,0.01127306]
[1766722249254,0.000549,88707.0,88705.0,0.01127332]
[1766722249810,0.00658619,88713.0,88705.0,0.01127332]
[1766722250181,0.00658619,88713.0,88707.0,0.01127306]
[1766722250396,0.00658619,88713.0,88703.0,0.05636775]
[1766722250594,0.00658619,88713.0,88704.0,0.01127344]
[1766722250869,0.00024526,88710.0,88705.0,0.01127332]
[1766722251049,0.00024526,88710.0,88704.0,0.01127344]
[1766722251255,0.00024526,88710.0,88705.0,0.01127332]
[1766722251680,0.00024526,88710.0,88704.0,0.01127344]
[1766722251889,0.000549,88704.0,88702.0,0.0112737]
[1766722252103,0.000549,88704.0,88699.0,0.01127408]
[1766722252317,0.000549,88704.0,88701.0,0.01127383]
[1766722252522,0.54206526,88710.0,88701.0,0.01127383]
[1766722252729,0.54206526,88710.0,88700.0,0.01127395]
[1766722252882,0.54206526,88710.0,88701.0,0.01127383]
[1766722253086,0.54206526,88710.0,88700.0,0.01127395]
[1766722253289,0.54206526,88710.0,88701.0,0.01127383]
[1766722253564,0.54206526,88710.0,88702.0,0.0112737]
[1766722253918,0.00024526,88710.0,88702.0,0.0112737]
[1766722254535,0.00024526,88710.0,88703.0,0.01127357]
[1766722255091,0.00024526,88710.0,88705.0,0.01127332]
[1766722255551,0.00024526,88710.0,88706.0,0.01127319]
[1766722255899,0.00024526,88710.0,88705.0,0.01127332]
[1766722256155,0.00024526,88710.0,88706.0,0.01127319]
[1766722256356,0.00024526,88710.0,88704.0,0.01127344]
[1766722256666,0.00024526,88710.0,88703.0,0.01127357]
[1766722256956,0.00024526,88710.0,88705.0,0.01127332]
[1766722257158,0.00024526,88710.0,88704.0,0.06764033]
[1766722257368,0.00024526,88710.0,88705.0,0.01127332]
[1766722257571,0.00024526,88710.0,88704.0,0.01127344]
[1766722257730,0.00024526,88710.0,88705.0,0.01127332]
[1766722258426,0.00024526,88710.0,88706.0,0.01127319]
[1766722258872,0.54182,88709.0,88706.0,1.79e-06]
[1766722259048,0.54127,88709.0,88698.0,4.16e-06]
[1766722259578,0.54127,88709.0,88707.0,0.01127306]
[1766722260370,0.00024526,88710.0,88707.0,0.01127306]
[1766722260789,0.00024526,88710.0,88707.0,0.06763808]
[1766722261014,0.00024526,88710.0,88708.0,0.05636417]
[1766722261209,0.54182,88718.0,88708.0,0.05636417]
[1766722261433,0.01127205,88715.0,88704.0,0.5305]
[1766722261567,0.01127205,88715.0,88702.0,0.01132]
[1766722261568,0.00055,88704.0,88702.0,0.01132]
[1766722261764,0.54182,88712.0,88702.0,0.01132]
[1766722262009,0.55309243,88712.0,88702.0,0.01132]
[1766722262816,0.54182,88712.0,88702.0,0.0225937]
[1766722263192,0.55309243,88712.0,88702.0,0.01132]
[1766722263969,0.001099,88702.0,88698.0,4.16e-06]
[1766722264175,0.001099,88702.0,88699.0,0.02259408]
[1766722264456,0.54182,88710.0,88700.0,0.01127395]
[1766722264614,0.54182,88710.0,88701.0,0.01127383]
[1766722264815,0.54182,88710.0,88700.0,0.41452277]
[1766722265042,0.54182,88710.0,88701.0,0.01127383]
[1766722265237,0.54182,88710.0,88702.0,0.0112737]
[1766722265955,0.54182,88710.0,88703.0,0.01127357]
[1766722266166,0.54182,88710.0,88702.0,0.0112737]
[1766722266340,0.54182,88710.0,88703.0,0.01127357]
[1766722266541,0.54182,88710.0,88704.0,0.01127344]
[1766722266711,0.001099,88704.0,88701.0,0.01127383]
[1766722266910,0.54182,88710.0,88701.0,0.01127383]
[1766722267542,0.54182,88710.0,88702.0,0.0112737]
[1766722267870,0.54182,88710.0,88704.0,0.01127344]
[1766722268078,0.54182,88710.0,88703.0,0.01127357]
[1766722269150,0.01127205,88715.0,88702.0,0.0676419]
[1766722269373,0.01127205,88715.0,88704.0,0.01127344]
[1766722269515,0.57737078,88715.0,88704.0,0.01127344]
[1766722269721,0.55309205,88715.0,88704.0,0.01127344]
[1766722269969,0.01127217,88714.0,88703.0,0.01127357]
[1766722270274,0.000549,88703.0,88699.0,0.06769042]
[1766722270417,0.01127243,88712.0,88701.0,0.01127383]
[1766722270622,0.5530923,88713.0,88701.0,0.01127383]
[1766722270820,0.01127255,88711.0,88699.0,0.55309408]
[1766722271175,0.01127268,88710.0,88699.0,0.55254508]
[1766722271404,0.01127281,88709.0,88699.0,0.541271]
[1766722271748,0.01127268,88710.0,88699.0,0.55254508]
[1766722272152,0.01127243,88712.0,88699.0,0.541271]
[1766722272382,0.01127243,88712.0,88700.0,0.01127395]
[1766722273615,0.01127243,88712.0,88701.0,0.01127383]
[1766722273822,0.01127255,88711.0,88700.0,0.01127395]
[1766722274406,0.01127243,88712.0,88700.0,0.01127395]
[1766722274600,0.01127243,88712.0,88699.0,0.55254508]
[1766722274601,0.01127255,88711.0,88699.0,0.55254508]
[1766722275767,0.01127255,88711.0,88700.0,0.01127395]
[1766722276541,0.01127243,88712.0,88701.0,0.01127383]
[1766722276975,0.0112723,88713.0,88701.0,0.56376383]
[1766722277197,0.01127243,88712.0,88701.0,0.55249]
[1766722277586,0.01127255,88711.0,88701.0,0.55249]
[1766722278583,0.01127243,88712.0,88701.0,0.56376383]
[1766722279653,0.0112723,88713.0,88702.0,0.0112737]
[1766722279834,0.0112723,88713.0,88701.0,0.56376383]
[1766722280198,0.01127255,88711.0,88701.0,0.55249]
[1766722280607,0.01127268,88710.0,88701.0,0.55249]
[1766722282274,0.01127255,88711.0,88701.0,0.55249]
[1766722282715,0.01127268,88710.0,88701.0,0.55249]
[1766722282915,0.05636005,88716.0,88702.0,0.0112737]
[1766722283120,0.05636005,88716.0,88703.0,0.56376357]
[1766722283322,0.01127217,88714.0,88703.0,0.56376357]
[1766722283858,0.0112723,88713.0,88703.0,0.55249]
[1766722284258,0.01127243,88712.0,88703.0,0.55249]
[1766722284457,0.0563645,88709.0,88703.0,0.53612462]
[1766722284638,0.01127294,88708.0,88701.0,0.01132]
[1766722284841,0.00055,88703.0,88701.0,0.01132]
[1766722285242,0.01127294,88708.0,88701.0,0.01132]
[1766722286093,0.01127306,88707.0,88701.0,0.01132]
[1766722286666,0.01127268,88710.0,88707.0,0.000549]
[1766722286807,0.01127268,88710.0,88702.0,0.55249]
[1766722287014,0.01127255,88711.0,88702.0,0.55249]
[1766722287421,0.01127268,88710.0,88702.0,0.55249]
[1766722287600,0.01127255,88711.0,88702.0,0.55249]
[1766722287816,0.06763417,88713.0,88702.0,0.55249]
[1766722288023,0.01127243,88712.0,88702.0,0.55249]
[1766722288421,0.01127255,88711.0,88702.0,0.55249]
[1766722288599,0.01127268,88710.0,88702.0,0.55249]
[1766722288803,0.01127268,88710.0,88702.0,0.56381]
[1766722289783,0.01127243,88712.0,88702.0,0.56381]
[1766722290110,0.01127268,88710.0,88702.0,0.56381]
[1766722290306,0.01127255,88711.0,88702.0,0.56381]
[1766722291378,0.01127281,88709.0,88702.0,0.56381]
[1766722291585,0.01127306,88707.0,88702.0,0.01077]
[1766722291990,0.01127281,88709.0,88702.0,0.01077]
[1766722292175,0.01127294,88708.0,88702.0,0.01077]
[1766722293418,0.05636267,88712.0,88702.0,0.56326]
[1766722293622,0.0676351,88712.0,88702.0,0.56326]
[1766722294123,0.01127255,88711.0,88702.0,0.56326]
[1766722294329,0.56399,88714.0,88702.0,0.5745337]
[1766722294530,0.57526217,88714.0,88702.0,0.5745337]
[1766722294871,0.01127255,88711.0,88702.0,0.56326]
[1766722295074,0.01127243,88712.0,88702.0,0.56326]
[1766722295279,0.01127255,88711.0,88702.0,0.56326]
[1766722295533,0.01127243,88712.0,88702.0,0.56326]
[1766722295921,0.01127281,88709.0,88702.0,0.56326]
[1766722296145,0.01127294,88708.0,88702.0,0.56326]
[1766722296353,0.01127281,88709.0,88702.0,0.56326]
[1766722296542,0.01127294,88708.0,88702.0,0.56326]
[1766722296745,0.01127306,88707.0,88702.0,0.01077]
[1766722297145,0.01127294,88708.0,88702.0,0.01077]
[1766722297348,0.06763721,88709.0,88702.0,0.01077]
[1766722297666,0.01127294,88708.0,88702.0,0.01077]
[1766722297855,0.01127306,88707.0,88702.0,0.01077]
[1766722298103,0.01127319,88706.0,88702.0,0.01077]
[1766722298337,0.01127294,88708.0,88702.0,0.01077]
[1766722298712,0.01127281,88709.0,88702.0,0.01077]
[1766722299108,0.01127294,88708.0,88702.0,0.01077]
[1766722299333,0.01127281,88709.0,88702.0,0.01077]
[1766722299532,0.01127294,88708.0,88702.0,0.01077]
[1766722301049,0.01127281,88709.0,88702.0,0.01077]
[1766722301256,0.01127294,88708.0,88702.0,0.01077]
[1766722302821,0.01127319,88706.0,88702.0,0.01077]
[1766722303017,0.01127281,88709.0,88702.0,0.01077]
[1766722303221,0.01127294,88708.0,88702.0,0.01077]
[1766722303424,0.01127281,88709.0,88702.0,0.01077]
[1766722304429,0.01127306,88707.0,88702.0,0.01077]
[1766722304627,0.01127294,88708.0,88702.0,0.01077]
[1766722306164,0.01127306,88707.0,88702.0,0.01077]
[1766722306691,0.01127294,88708.0,88702.0,0.01077]
[1766722306943,0.01127306,88707.0,88702.0,0.01077]
[1766722307091,0.01127294,88708.0,88702.0,0.01077]
[1766722307289,0.06763718,88709.0,88686.0,0.01127573]
[1766722307290,0.01127408,88699.0,88686.0,0.01127573]
[1766722307491,0.01127408,88699.0,88689.0,0.41429246]
[1766722307716,0.01127408,88699.0,88689.0,0.40301711]